Cogmind - Beta 9.4 @@@ ROGUE MODE // 2020.03.10 @ 04:16:13 Player: Basil Result: Destroyed by S-10 Pest with Light Assault Rifle Performance ------------- Evolutions (1) 500 Regions Visited (2) 400 Robots Destroyed (1) 5 Value Destroyed (20) 20 Prototype IDs (1) 20 Alien Tech Used (0) 0 Bonus (200) 200 TOTAL SCORE: 1145 Bonus ------- Pacifist 200 Cogmind --------- Core Integrity 0/400 Matter 212/300 Energy 11/100 System Corruption 0% Temperature Cool (0) Movement Rolling (100) Location -9/Materials Parts ------- > --- POWER (2) -------- (None) > --- PROPULSION (2) --- Compact Wheel > --- UTILITY (2) ------ Weight Redist. System > --- WEAPON (3) ------- (None) > --- INVENTORY (4) ---- (None) Peak State ------------ > --- POWER ------------ Ion Engine > --- PROPULSION ------- Wheel Improved Hover Unit > --- UTILITY ---------- Weight Redist. System > --- WEAPON ----------- Advanced Beam Cannon Assault Rifle > --- INVENTORY -------- Compact Wheel [Rating: 10] Favorites ----------- Power Ion Engine Engine Ion Engine Propulsion Wheel Wheel Wheel Hover Unit Improved Hover Unit Utility Weight Redist. System Device Weight Redist. System Weapon Assault Rifle Energy Cannon Advanced Beam Cannon Ballistic Gun Assault Rifle Build | -11 -10 -9 ------- Run | Scr Mat Mat Slots Evolved 2 | . . 2 Power 1 | . . 1 Propulsion . | . . . Utility . | . . . Weapon 1 | . . 1 Parts Attached 10 | 5 . 5 Power 1 | 1 . . Engine 1 | 1 . . Core . | . . . Reactor . | . . . Propulsion 4 | 2 . 2 Treads . | . . . Leg . | . . . Wheel 3 | 2 . 1 Hover 1 | . . 1 Flight . | . . . Utility 1 | . . 1 Device 1 | . . 1 Storage . | . . . Processor . | . . . Hackware . | . . . Protection . | . . . Artifact . | . . . Weapon 4 | 2 . 2 Energy Gun . | . . . Energy Cannon 2 | . . 2 Ballistic Gun 2 | 2 . . Ballistic Cannon . | . . . Launcher . | . . . Special Weapon . | . . . Impact Weapon . | . . . Slashing Weapon . | . . . Piercing Weapon . | . . . Special Melee Weapon . | . . . Unidentified Prototypes 1 | . . 1 Parts Lost 6 | . . 6 Power 1 | . . 1 Propulsion 2 | . . 2 Utility . | . . . Weapon 3 | . . 3 Highest Loss Streak 6 | . . 6 Average Slot Usage (%) 55 | . 71 47 Engine 9 | . 14 7 Wheel 15 | . 28 8 Hover 4 | . . 6 Device 6 | . . 9 Energy Cannon 1 | . . 2 Ballistic Gun 18 | . 28 12 Naked Turns . | . . . Heaviest Build 11 | 9 9 11 Greatest Support 26 | 26 26 26 Greatest Overweight (x) 2 | 2 . 1 Average Overweight (x) . | . . . Largest Inventory Capacity 4 | 4 4 4 Average Capacity 4 | 4 4 4 Most Carried 3 | 2 . 3 Average Carried . | . . 1 Final Capacity 4 | 4 4 4 Final Carried . | . . . Class Distribution -------------------- 100% | Mutant Dominant Class ---------------- Mutant | -10/Materials Mutant | -9/Materials Resources | -11 -10 -9 ----------- Run | Scr Mat Mat Matter Collected 245 | 233 . 12 Remotely . | . . . Salvage Created 12 | . . 12 Parts 1 | . . 1 Haulers Intercepted . | . . . Recyclers Shooed . | . . . Parts Field Recycled . | . . . Retrieved Matter . | . . . Parts Self-Destructed . | . . . Prevented . | . . . Kills | -11 -10 -9 ------- Run | Scr Mat Mat Combat Hostiles Destroyed 1 | . . 1 Cannons 1 | . . 1 Classes Destroyed 1 | . . 1 Swarmer 1 | . . 1 Best Kill Streak 1 | . . 1 Combat Bots Only 1 | . . 1 Max Kills in Single Turn 1 | . . 1 Gunslinging . | . . . Exploded . | . . . Melee . | . . . Uniques/NPCs Destroyed . | . . . Combat | -11 -10 -9 -------- Run | Scr Mat Mat Damage Taken 859 | . . 859 Core 406 | . . 406 Absorbed by Shields . | . . . Core Remaining (%) 100 | 100 100 . Volleys Fired 20 | . 2 18 Largest 2 | . 2 2 Hottest 68 | . 40 68 Shots Fired 29 | . 4 25 Gun 21 | . 4 17 Cannon 8 | . . 8 Launcher . | . . . Special . | . . . Kinetic 21 | . 4 17 Thermal 8 | . . 8 Explosive . | . . . Electromagnetic . | . . . Robot Hit Streak 2 | . 2 2 Robot Miss Streak 5 | . 1 5 Penetration Max . | . . . Secondary Targets . | . . . Shots Hit Robots 14 | . 3 11 Core Hits 1 | . . 1 Critical Hits 2 | . . 2 Critical Kills 1 | . . 1 Critical Parts Destroyed 1 | . . 1 Melee Attacks . | . . . Impact . | . . . Slashing . | . . . Piercing . | . . . Sneak Attacks . | . . . Combat Hostiles . | . . . Follow-up Attacks . | . . . Damage Inflicted 156 | . 23 133 Guns 54 | . 23 31 Cannons 102 | . . 102 Explosions . | . . . Melee . | . . . Ramming . | . . . Kinetic 54 | . 23 31 Thermal 102 | . . 102 Explosive . | . . . Electromagnetic . | . . . Impact . | . . . Slashing . | . . . Piercing . | . . . Highest Corruption . | . . . Average Corruption . | . . . Corruption Purged . | . . . Overload Shots . | . . . Overflow Damage . | . . . Projectiles . | . . . Explosions . | . . . Melee . | . . . Knockbacks . | . . . Impact . | . . . Kinetic . | . . . Secondary . | . . . Self-Inflicted Damage . | . . . Shots . | . . . Rammed . | . . . Targets Rammed . | . . . Kicked . | . . . Crushed . | . . . Highest Temperature 172 | . . 172 Average Temperature 89 | . . 89 Received Heat Transfer 90 | . . 90 Siege Activations . | . . . Robots Corrupted . | . . . Combat Hostiles . | . . . Parts Fried . | . . . Impact Corruptions . | . . . Robots Melted . | . . . Combat Hostiles . | . . . Parts Melted . | . . . Heat Transferred 185 | . . 185 Parts Sabotaged . | . . . Parts Stolen . | . . . Parts Stripped . | . . . Power Chain Reactions . | . . . Missiles Intercepted . | . . . Alert | -11 -10 -9 ------- Run | Scr Mat Mat Peak Influence 25 | . 15 25 Average Influence 5 | . 5 6 Maximum Alert Level . | . . . Low Security (%) 100 | 100 100 100 Level 1 . | . . . Level 2 . | . . . Level 3 . | . . . Level 4 . | . . . Level 5 . | . . . High Security . | . . . Max Security . | . . . Squads Dispatched 1 | . 1 . Investigation . | . . . Extermination . | . . . Reinforcement 1 | . 1 . Assault . | . . . Garrison . | . . . Intercept . | . . . Construction Impeded . | . . . Haulers Reinforced . | . . . Stealth | -11 -10 -9 --------- Run | Scr Mat Mat Distress Signals . | . . . Communications Jammed . | . . . Distress Signals . | . . . Times Spotted 6 | . 1 5 Peak Tracking Total 4 | . 1 4 Tactical Retreats . | . . . Traps | -11 -10 -9 ------- Run | Scr Mat Mat Traps Triggered . | . . . Indirectly . | . . . Trap Hack Attempts . | . . . Triggered . | . . . Disarmed . | . . . Reprogrammed . | . . . Reused . | . . . Traps Extracted . | . . . Installed . | . . . Triggered . | . . . Machines | -11 -10 -9 ---------- Run | Scr Mat Mat Machines Disabled 1 | . . 1 Max in Single Turn 1 | . . 1 Machines Sabotaged . | . . . Garrisons Compromised . | . . . Overloaded Fab Kills . | . . . Fab Network Shutdowns . | . . . Hacking | -11 -10 -9 --------- Run | Scr Mat Mat Machines Accessed 1 | . 1 . Terminals 1 | . 1 . Fabricators . | . . . Repair Stations . | . . . Recycling Units . | . . . Scanalyzers . | . . . Garrison Access . | . . . Total Hacks 2 | . 2 . Successful 2 | . 2 . Failed . | . . . Catastrophic . | . . . Database Lockouts . | . . . Manual . | . . . Terminals 2 | . 2 . Fabricators . | . . . Repair Stations . | . . . Recycling Units . | . . . Scanalyzers . | . . . Garrison Access . | . . . Terminal Hacks 2 | . 2 . Investigation Status 1 | . 1 . Zone Layout 1 | . 1 . Fabricator Hacks . | . . . Repair Station Hacks . | . . . Recycling Unit Hacks . | . . . Scanalyzer . | . . . Garrison Access Hacks . | . . . Unauthorized Hacks . | . . . Terminals . | . . . Fabricators . | . . . Repair Stations . | . . . Recycling Units . | . . . Scanalyzers . | . . . Garrison Access . | . . . Data Cores Recovered . | . . . Used . | . . . Hacking Detections . | . . . Full Trace Events . | . . . Feedback Events . | . . . Feedback Blocked . | . . . Robot Schematics Acquired . | . . . Robots Built . | . . . Matter . | . . . Time . | . . . Total Robot Build Rating . | . . . Part Schematics Acquired . | . . . Parts Built . | . . . Matter . | . . . Time . | . . . Total Part Build Rating . | . . . Parts Repaired . | . . . Time . | . . . Parts Recycled . | . . . Recycled Matter . | . . . Retrieved Matter . | . . . Retrieved Components . | . . . Parts Scanalyzed . | . . . Part Schematics Acquired . | . . . Parts Damaged . | . . . Bothacking | -11 -10 -9 ------------ Run | Scr Mat Mat Used RIF Installer . | . . . Robots Hacked . | . . . Non-combat . | . . . Combat . | . . . Robot Hacks Applied . | . . . Relay Couplers Released . | . . . Robots Rewired . | . . . Allies Hacked . | . . . Hacks Repelled . | . . . Allies | -11 -10 -9 -------- Run | Scr Mat Mat Total Allies . | . . . Largest Group . | . . . Highest-Rated Group . | . . . Highest-Rated Ally . | . . . Total Orders . | . . . Ally Attacks . | . . . Total Damage . | . . . Kills . | . . . Allies Corrupted . | . . . Allies Melted . | . . . Intel | -11 -10 -9 ------- Run | Scr Mat Mat Robot Analysis Total . | . . . Derelict Logs Recovered . | . . . Drone Launches . | . . . Drone Recoveries . | . . . Exploration | -11 -10 -9 ------------- Run | Scr Mat Mat Turns Passed 243 | 40 69 134 Spaces Moved 218 | 33 70 115 Core 49 | 10 . 39 Treads . | . . . Legs . | . . . Wheels 118 | 23 70 25 Hover 51 | . . 51 Flight . | . . . Fastest Speed 50 | 50 90 50 Average Speed 79 | 91 90 68 Slowest Speed 150 | 150 90 125 Overloaded Moves . | . . . Propulsion Burnouts . | . . . Robots Hopped . | . . . Cave-ins Triggered . | . . . Exploration Rate (%) 10 | 4 17 10 Regions Visited 2 Branch Regions . Pre-discovered Areas . | . . . Known Exits Taken . | . . . Unknown Exits Taken 2 | 1 1 . Scrap Searched . | . . . Spaces Dug . | . . . Terrain Destroyed . | . . . Melee . | . . . Projectile . | . . . AOE . | . . . Actions | -11 -10 -9 --------- Run | Scr Mat Mat Total 258 | 42 71 145 Wait . | . . . Move 216 | 32 69 115 Hop . | . . . Pick Up 10 | 5 . 5 Fast Attach . | . . . Attach 8 | 5 . 3 Detach . | . . . Swap 2 | . . 2 Drop 2 | . . 2 Fire 20 | . 2 18 Melee . | . . . Ram . | . . . Kick . | . . . Crush . | . . . Escape Stasis . | . . . Rewire . | . . . Trap . | . . . Miscellaneous . | . . . Route ------- -11/Scrapyard -10/Materials -9/Materials History --------- Turn | Location | Event 13 | -11/Scrapyard | Discovered new exit (range 16) 41 | -11/Scrapyard | Entered Materials 96 | -10/Materials | Discovered new exit (range 16) 110 | -10/Materials | Entered another Materials area 110 | -9/Materials | Evolved 2 slots: Power x1, Weapon x1 204 | -9/Materials | Core integrity fell below 50% 218 | -9/Materials | Core integrity fell below 20% 243 | -9/Materials | Lost 6 parts (1p2n3w) 244 | -9/Materials | Destroyed by S-10 Pest with Light Assault Rifle Last Messages --------------- K-01 Serf collects debris. Acquired Prototype Energy Cannon. Assault Rifle destroyed. Identified Adv. Beam Cannon. Malfunction: Power surge. Broken Imp. Hover Unit permanently disabled. Acquired Faulty Adv. Beam Cannon. Assault Rifle destroyed. Acquired Adv. Beam Cannon. Wheel destroyed. S-10 Pest suffers critical hit. S-10 Pest destroyed. Broken Imp. Hover Unit destroyed. Terminal disabled. Ion Engine destroyed. S-10 Pest suffers critical hit. Destroyed Lgt. Ion Engine. Adv. Beam Cannon destroyed. Acquired 12 matter. Dropped Faulty Adv. Beam Cannon. Map ----- +----------------------------------------------------+ | ??????????????????????????????????? | | ??????????????????????????????????? | | ??????????????????????????????????? | | ??????????????????????????????????? | | ??????????????????????????????????? | | ??????????????????????????????????? | | ??????????????????????????????????? | | ??????????????????????????????????? | | ??????????????????????????????????? | | ??????????????????????????????????? | | ????????? ????????????????????????? | | ????????? ????????????????????????? | | ????????? ????????????????????????? | | ????????? ????????????????????????? | | ????????? #???????????????????????? | | ????????? #???????????????????????? | | ????????# #???????????????????????? | | ######### #???????????????????????? | | # ## #???????????????????????? | | # """ ## #???????#???????????????? | | # """ ## #?????? #???????????????? | | # """ ## #????? #???????????????? | | # ## ##### #???????????????? | | # """ # #???????????????? | | # ]"""ss +???????????????? | | # ]""" # @ #???????????????? | | # # ###+####???????????????? | | # """ # #??????????????????????? | | # """ # w#??????????????????????? | | # """ # #??????????????????????? | | # # #??????????????????????? | | ######## #??????????????????????? | | ???????# #??????????????????????? | | ???????# #??????????????????????? | | ???????# uY#??????????????????????? | | ???????# #??????????????????????? | | ??????## ##?????????????????????? | | ??????# #?????????????????????? | | ??????# ######## #?????????? | | ??????+ Tr #?????????? | | ??????# #########?????????????? | | ??????# #?????????????????????? | | ??????## #########??????????????? | | ???????# # = ! #??????????????? | | ???????# # #??????????????? | | ???????# / #??????????????? | | ???????# # #??????????????? | | ???????# # #??????????????? | | ???????# ###### ##??????????????? | | ???????# ##########?????????????? | +----------------------------------------------------+ Best States ------------- Heat Dissipation 28 Energy Generation 10 Energy Capacity 250 Matter Stores 283 Matter Capacity 300 Sight Range 16 Terrain Scan Density 10 Additional Mass Support 6 Evasion (%) 52 Item Schematics ----------------- None Robot Schematics ------------------ None Fabricated ------------ Nothing Alien Tech Used ----------------- None Achievements -------------- None Challenges ------------ None Game ------ Seed PotentialAlphaShredder Manual? 0 Play Time 00:10:58 Cumulative 9.7 hours Start 2020.03.10 @ 04:08:26 End 2020.03.10 @ 04:16:13 Sessions 1 Manual Loads 0 Difficulty Rogue Special Mode None Game No. 13 Rogue 13 Adventurer 0 Explorer 0 Win Type - Total 0 Types 0/0/0/0/0/0/0 Lore% 10 Gallery% 11 Achievement% 7 Wizard Run 0 Options --------- ASCII 0 Keyboard 0 Movement Mouse Keybinds 0 Fullscreen 0 Font 16/SmallcapsGlow Map View 76x50 Tactical HUD 0 Map Filters NONE Filters NONE Steam 1 RUN: 1ab076b0-f16b-49a9-b949-d9bc79f90cc0